fUSD/lending_fUSD_20260112
["ID","MTS","AMOUNT","RATE_DAILY","PERIOD"]
[401432876,1768209045592,-1433.4,0.00015196,2]
[401432877,1768209045601,-177.01205422,0.00015198,2]
[401432878,1768209045611,-736.0,0.00015227,2]
[401432879,1768209045620,-250.0,0.00015454,2]
[401432880,1768209045630,-3292.0,0.00015566,2]
[401432881,1768209045639,-9695.0,0.00015799,2]
[401432882,1768209045648,-161.58692255,0.00015799,2]
[401432883,1768209045657,-10972.86798705,0.00015799,2]
[401432885,1768209045679,-70566.56605173,0.00015936,2]
[401432887,1768209045688,-177.01205422,0.00016099,2]
[401432889,1768209045697,-998.0,0.000161,2]
[401432891,1768209045706,-150.0,0.000162,2]
[401432892,1768209045716,-150.0,0.000162,2]
[401432893,1768209045725,-150.0,0.000162,2]
[401432894,1768209045734,-150.0,0.000162,2]
[401432895,1768209045744,-150.0,0.000162,2]
[401432896,1768209045753,-150.0,0.000162,2]
[401432897,1768209045762,-150.00000001,0.000162,2]
[401432898,1768209045771,-150.0,0.000162,2]
[401432899,1768209045780,-150.0,0.000162,2]
[401432900,1768209045790,-150.0,0.000162,2]
[401432901,1768209045799,-150.0,0.000162,2]
[401432902,1768209045809,-150.0,0.0001625,2]
[401432903,1768209045819,-150.0,0.000163,2]
[401432904,1768209045828,-150.0,0.0001635,2]
[401432905,1768209045837,-150.0,0.000164,2]
[401432906,1768209045846,-753.36,0.00016438,2]
[401432907,1768209045856,-753.36,0.00016438,2]
[401432908,1768209045865,-753.36,0.00016438,2]
[401432909,1768209045875,-753.36,0.00016438,2]
[401432910,1768209045884,-753.36,0.00016438,2]
[401432911,1768209045893,-753.36,0.00016438,2]
[401432912,1768209045903,-150.0,0.00016438,2]
[401432913,1768209045912,-23759.06,0.00016438,2]
[401432914,1768209045921,-151.0,0.00016438,2]
[401432915,1768209045930,-150.0,0.0001645,2]
[401432916,1768209045940,-10972.86798705,0.00016499,2]
[401432917,1768209045949,-150.0,0.000165,2]
[401432918,1768209045959,-150.0,0.0001655,2]
[401432919,1768209045967,-150.0,0.000166,2]
[401432920,1768209045977,-201.0,0.00016631,2]
[401432921,1768209045986,-150.0,0.0001665,2]
[401432922,1768209045995,-150.0,0.0001665,2]
[401432923,1768209046005,-150.0,0.000167,2]
[401432924,1768209046014,-753.36,0.00016715,2]
[401432925,1768209046023,-1000.0,0.00016716,2]
[401432927,1768209046033,-1433.4,0.00016716,2]
[401432928,1768209046041,-150.0,0.0001675,2]
[401432929,1768209046050,-500.0,0.00016799,2]
[401432930,1768209046060,-500.0,0.00016799,2]
[401432931,1768209046069,-150.0,0.000168,2]
[401432932,1768209046078,-150.0,0.000168,2]
[401432933,1768209046088,-562.0,0.00016819,2]
[401432934,1768209046097,-500.0,0.00016823,2]
[401432935,1768209046106,-161.58692255,0.00016849,2]
[401432936,1768209046116,-150.0,0.0001685,2]
[401432937,1768209046127,-150.0,0.000169,2]
[401432938,1768209046138,-562.0,0.00016926,2]
[401432939,1768209046147,-150.0,0.0001695,2]
[401432940,1768209046157,-232.41861165,0.00016968,2]
[401432941,1768209046167,-234.85694137,0.00016968,2]
[401432942,1768209046177,-177.01205422,0.00016999,2]
[401432943,1768209046186,-150.0,0.00017,2]
[401432944,1768209046196,-4030.37,0.00017019,2]
[401432945,1768209046205,-562.0,0.00017034,2]
[401432946,1768209046215,-150.0,0.0001705,2]
[401432947,1768209046224,-500.0,0.00017073,2]
[401432948,1768209046234,-500.0,0.00017073,2]
[401432949,1768209046244,-500.0,0.00017073,2]
[401432950,1768209046254,-500.0,0.00017073,2]
[401432951,1768209046263,-486.88056707,0.00017073,2]
[401432952,1768209046272,-500.0,0.00017073,2]
[401432953,1768209046281,-500.0,0.00017073,2]
[401432954,1768209046290,-150.0,0.000171,2]
[401432955,1768209046299,-150.0,0.000171,2]
[401432956,1768209046308,-150.0,0.000171,2]
[401432957,1768209046317,-150.0,0.000171,2]
[401432958,1768209046327,-150.0,0.000171,2]
[401432959,1768209046336,-150.0,0.000171,2]
[401432960,1768209046345,-150.0,0.000171,2]
[401432961,1768209046355,-4609.0,0.00017123,2]
[401432962,1768209046364,-562.0,0.00017141,2]
[401432963,1768209046373,-158.73335703,0.00017141,2]
[401432964,1768209046383,-150.0,0.0001715,2]
[401432965,1768209046392,-10972.86798705,0.000172,2]
[401432966,1768209046401,-150.0,0.000172,2]
[401432967,1768209046411,-1000.0,0.000172,2]
[401432968,1768209046420,-152.0,0.00017217,4]
[401432969,1768209046430,-562.0,0.00017248,2]
[401432970,1768209046439,-150.0,0.0001725,2]
[401432971,1768209046448,-150.0,0.000173,2]
[401432972,1768209046459,-1000.0,0.00017327,2]
[401432973,1768209046468,-150.0,0.0001735,2]
[401432974,1768209046477,-562.0,0.00017356,2]
[401432975,1768209046487,-3469.0,0.0001737,2]
[401432976,1768209046497,-614.0,0.0001737,2]
[401432977,1768209046505,-1330.0,0.0001737,2]
[401432978,1768209046515,-1405.0,0.0001737,2]
[401432979,1768209046525,-505.0,0.0001737,2]
[401432980,1768209046534,-1267.0,0.0001737,2]
[401432981,1768209046544,-1201.0,0.0001737,2]
[401432982,1768209046554,-914.0,0.0001737,2]
[401432983,1768209046563,-4821.0,0.0001737,2]
[401432984,1768209046574,-6556.0,0.0001737,2]
[401432985,1768209046585,-2437.0,0.0001737,2]
[401432986,1768209046596,-150.0,0.000174,2]
[401432987,1768209046605,-150.0,0.000174,2]
[401432988,1768209046615,-150.0,0.0001745,2]
[401432990,1768209046623,-562.0,0.00017463,2]
[401432991,1768209046633,-2080.0,0.00017485,2]
[401432992,1768209046643,-150.0,0.000175,2]
[401432993,1768209046652,-2000.0,0.000175,2]
[401432994,1768209046661,-150.0,0.0001755,2]
[401432995,1768209046670,-150.0,0.0001755,2]
[401432996,1768209046680,-562.0,0.00017571,2]
[401432997,1768209046689,-2080.0,0.00017584,2]
[401432998,1768209046698,-150.0,0.000176,2]
[401432999,1768209046707,-1000.0,0.00017621,2]
[401433000,1768209046717,-1000.0,0.00017621,2]
[401433001,1768209046726,-1002.11848052,0.00017621,2]
[401433002,1768209046735,-1000.0,0.00017621,2]
[401433003,1768209046744,-1000.0,0.00017621,2]
[401433004,1768209046753,-1000.0,0.00017621,2]
[401433005,1768209046763,-1263.17237155,0.0001764,2]
[401433006,1768209046772,-150.0,0.0001765,2]
[401433007,1768209046782,-500.0,0.00017671,2]
[401433008,1768209046791,-562.0,0.00017678,2]
[401433009,1768209046800,-500.0,0.00017699,2]
[401433010,1768209046809,-4307.04643237,0.000177,2]
[401433011,1768209046819,-150.0,0.000177,2]
[401433012,1768209046828,-1198.0,0.000177,2]
[401433013,1768209046837,-1000.0,0.00017708,2]
[401433014,1768209046847,-1000.0,0.00017708,2]
[401433015,1768209046856,-2080.0,0.00017717,2]
[401433016,1768209046865,-1000.0,0.00017717,2]
[401433017,1768209046874,-222.97211581,0.00017718,2]
[401433018,1768209046884,-1000.0,0.00017723,2]
[401433019,1768209046893,-1000.0,0.00017725,2]
[401433020,1768209046902,-1000.0,0.00017727,2]
[401433021,1768209046911,-1991.86233544,0.00017727,2]
[401433022,1768209046921,-152.06497503,0.0001773,2]
[401433023,1768209046931,-1000.0,0.0001773,2]
[401433024,1768209046940,-1000.0,0.00017733,2]
[401433025,1768209046949,-500.0,0.00017736,2]
[401433026,1768209046959,-500.0,0.00017736,2]
[401433027,1768209046968,-500.0,0.00017736,2]
[401433028,1768209046977,-500.0,0.00017736,2]
[401433029,1768209046987,-500.0,0.00017736,2]
[401433030,1768209046996,-150.0,0.0001775,2]
[401433031,1768209047006,-1000.0,0.0001775,2]
[401433032,1768209047016,-1000.0,0.00017755,2]
[401433033,1768209047025,-1991.86233544,0.00017762,2]
[401433034,1768209047035,-1000.0,0.00017772,2]
[401433035,1768209047044,-1000.0,0.00017773,2]
[401433036,1768209047053,-150.0,0.00017774,2]
[401433037,1768209047063,-1000.0,0.00017776,2]
[401433038,1768209047072,-1000.0,0.00017776,2]
[401433039,1768209047082,-1000.0,0.00017776,2]
[401433040,1768209047091,-562.0,0.00017785,2]
[401433041,1768209047101,-1000.0,0.00017787,2]
[401433042,1768209047111,-1000.0,0.00017788,2]
[401433043,1768209047120,-1000.0,0.00017789,2]
[401433044,1768209047134,-753.36,0.00017794,2]
[401433045,1768209047143,-162119.39668283,0.00017794,2]
[401433046,1768209047151,-1000.0,0.00017796,2]
[401433047,1768209047161,-1991.86233544,0.00017796,2]
[401433048,1768209047173,-1000.0,0.00017799,2]
[401433049,1768209047183,-150.0,0.000178,2]
[401433050,1768209047192,-156.587,0.00017807,2]
[401433051,1768209047202,-15915.0,0.00017808,2]
[401433052,1768209047211,-150.0,0.00017809,2]
[401433053,1768209047223,-1000.0,0.00017809,2]
[401433054,1768209047233,-1000.0,0.0001782,2]
[401433055,1768209047242,-561.74084,0.0001782,2]
[401433056,1768209047253,-561.74084,0.0001782,2]
[401433057,1768209047262,-910.24842296,0.0001782,2]
[401433058,1768209047272,-1000.0,0.00017823,2]
[401433059,1768209047282,-262.49854168,0.00017826,2]
[401433060,1768209047292,-753.36,0.00017826,2]
[401433061,1768209047304,-753.36,0.00017826,2]
[401433062,1768209047564,-753.36,0.00017826,2]
[401433063,1768209047584,-753.36,0.00017826,2]
[401433064,1768209047593,-263720.8638992,0.00017827,2]
[401433065,1768209047602,-372452.56856536,0.00017827,2]
[401433066,1768209047612,-481945.7808,0.00017827,2]
[401433067,1768209047621,-150.0,0.00017829,2]
[401433068,1768209047631,-753.36,0.00017829,2]
[401433069,1768209047640,-25000.0,0.0001783,3]
[401433070,1768209047650,-83171.52894996,0.0001783,2]
[401433071,1768209047659,-561.74085,0.0001783,2]
[401433072,1768209047669,-1991.86233544,0.00017831,2]
[401433073,1768209047678,-1000.0,0.00017831,2]
[401433074,1768209047687,-500.0,0.00017838,2]
[401433075,1768209047696,-25000.0,0.00017838,3]
[401433076,1768209047706,-1000.0,0.00017844,2]
[401433077,1768209047715,-150.0,0.00017844,2]
[401433078,1768209047724,-25000.0,0.00017847,3]
[401433079,1768209047734,-1000.0,0.00017849,2]
[401433080,1768209047743,-150.0,0.0001785,2]
[401433081,1768209047752,-1000.0,0.0001785,2]
[401433082,1768209047761,-1000.0,0.00017852,2]
[401433083,1768209047771,-200.0,0.00017855,2]
[401433084,1768209047780,-2080.0,0.00017856,2]
[401433085,1768209047790,-25000.0,0.00017856,3]
[401433086,1768209047800,-200.0,0.00017856,2]
[401433087,1768209047812,-561.74084,0.0001786,2]
[401433088,1768209047822,-25000.0,0.00017865,3]
[401433089,1768209047831,-1991.86233544,0.00017865,2]
[401433090,1768209047841,-150.0,0.0001787,2]
[401433091,1768209047851,-25000.0,0.00017874,3]
[401433092,1768209047861,-1000.0,0.00017875,2]
[401433093,1768209047871,-587.16689056,0.00017879,2]
[401433094,1768209047881,-561.74084,0.0001788,2]
[401433095,1768209047892,-25000.0,0.00017882,3]
[401433096,1768209047901,-2080.0,0.00017886,2]
[401433097,1768209047911,-1000.0,0.00017887,2]
[401433098,1768209047920,-753.36,0.0001789,2]
[401433099,1768209047930,-25000.0,0.00017891,3]
[401433100,1768209047939,-562.0,0.00017893,2]
[401433101,1768209047948,-2080.0,0.00017895,2]
[401433102,1768209047958,-500.0,0.00017899,2]
[401433103,1768209047967,-1000.0,0.00017899,2]
[401433104,1768209047976,-1054.4366,0.000179,2]
[401433105,1768209047987,-25000.0,0.000179,3]
[401433106,1768209047996,-8365.1305,0.000179,2]
[401433107,1768209048006,-14981.27545297,0.000179,3]
[401433108,1768209048015,-150.0,0.000179,2]
[401433109,1768209048025,-161.58692255,0.000179,2]
[401433110,1768209048034,-177.01205422,0.000179,2]
[401433111,1768209048044,-2090.29615035,0.000179,2]
[401433112,1768209048053,-10972.86798705,0.000179,2]
[401433113,1768209048062,-1200.72001265,0.000179,2]
[401433114,1768209048072,-1200.72001256,0.000179,2]
[401433115,1768209048081,-1200.72001256,0.000179,2]
[401433116,1768209048092,-718.34267946,0.000179,3]
[401433117,1768209048102,-1200.72001256,0.000179,2]
[401433118,1768209048113,-1200.72001256,0.000179,2]
[401433119,1768209048122,-1200.72001256,0.000179,2]
[401433120,1768209048135,-1200.72001256,0.000179,2]
[401433121,1768209048145,-1200.72001256,0.000179,2]
[401433122,1768209048155,-1200.72001256,0.000179,2]
[401433123,1768209048167,-1991.86233544,0.000179,2]
[401433124,1768209048176,-1200.72001256,0.000179,2]
[401433125,1768209048186,-1200.72001256,0.000179,2]
[401433126,1768209048198,-1200.72001256,0.000179,2]
[401433127,1768209048210,-500.0,0.000179,2]
[401433128,1768209048220,-500.0,0.000179,2]
[401433129,1768209048229,-500.0,0.000179,2]
[401433130,1768209048238,-500.0,0.000179,2]
[401433131,1768209048248,-500.0,0.000179,2]
[401433132,1768209048257,-500.0,0.000179,2]
[401433133,1768209048266,-500.0,0.000179,2]
[401433134,1768209048278,-500.0,0.000179,2]
[401433135,1768209048289,-500.0,0.000179,2]
[401433136,1768209048299,-500.0,0.000179,2]
[401433137,1768209048309,-500.0,0.000179,2]
[401433138,1768209048319,-500.0,0.000179,2]
[401433139,1768209048329,-500.0,0.000179,2]
[401433140,1768209048338,-500.0,0.000179,2]
[401433141,1768209048347,-500.0,0.000179,2]
[401433142,1768209048356,-500.0,0.000179,2]
[401433143,1768209048365,-500.0,0.000179,2]
[401433144,1768209048374,-500.0,0.000179,2]
[401433145,1768209048383,-500.0,0.000179,2]
[401433146,1768209048392,-500.0,0.000179,2]
[401433147,1768209048402,-500.0,0.000179,2]
[401433148,1768209048411,-500.0,0.000179,2]
[401433149,1768209048420,-500.0,0.000179,2]
[401433150,1768209048430,-500.0,0.000179,2]
[401433151,1768209048439,-500.0,0.000179,2]
[401433152,1768209048449,-500.0,0.000179,2]
[401433153,1768209048458,-500.0,0.000179,2]
[401433154,1768209048467,-500.0,0.000179,2]
[401433155,1768209048476,-500.0,0.000179,2]
[401433156,1768209048485,-500.0,0.000179,2]
[401433157,1768209048494,-500.0,0.000179,2]
[401433158,1768209048503,-500.0,0.000179,2]
[401433159,1768209048512,-500.0,0.000179,2]
[401433160,1768209048521,-500.0,0.000179,2]
[401433161,1768209048530,-500.0,0.000179,2]
[401433162,1768209048539,-500.0,0.000179,2]
[401433163,1768209048548,-500.0,0.000179,2]
[401433164,1768209048557,-500.0,0.000179,2]
[401433165,1768209048567,-500.0,0.000179,2]
[401433166,1768209048576,-500.0,0.000179,2]
[401433167,1768209048585,-500.0,0.000179,2]
[401433168,1768209048594,-500.0,0.000179,2]
[401433169,1768209048603,-500.0,0.000179,2]
[401433170,1768209048612,-500.0,0.000179,2]
[401433171,1768209048621,-500.0,0.000179,2]
[401433172,1768209048631,-500.0,0.000179,2]
[401433173,1768209048640,-301.9716591,0.000179,2]
[401433174,1768209048649,-1000.0,0.0001791,2]
[401433175,1768209048661,-561.74085,0.0001791,2]
[401433176,1768209048672,-1000.0,0.00017916,2]
[401433177,1768209048682,-168.18552807,0.00017924,2]
[401433178,1768209048692,-1000.0,0.00017932,2]
[401433179,1768209048702,-1000.0,0.00017933,2]
[401433180,1768209048713,-1000.0,0.00017937,2]
[401433181,1768209048723,-150.0,0.0001795,2]
[401433182,1768209048733,-1000.0,0.00017952,2]
[401433183,1768209048742,-1000.0,0.00017953,2]
[401433184,1768209048752,-1000.0,0.00017958,2]
[401433185,1768209048761,-1000.0,0.00017959,2]
[401433186,1768209048771,-1000.0,0.0001796,2]
[401433187,1768209048781,-1000.0,0.00017962,2]
[401433188,1768209048790,-1000.0,0.00017968,2]
[401433189,1768209048800,-6077.0,0.00017973,2]
[401433190,1768209048810,-381.34584895,0.00017973,2]
[401433191,1768209048819,-501.47661499,0.00017973,2]
[401433192,1768209048828,-644.05438872,0.00017973,2]
[401433193,1768209048838,-501.12911319,0.00017973,2]
[401433194,1768209048847,-502.23302881,0.00017973,2]
[401433195,1768209048856,-500.0,0.00017973,2]
[401433196,1768209048867,-498.39272947,0.00017973,2]
[401433197,1768209048876,-503.85916191,0.00017973,2]
[401433198,1768209048889,-501.78685961,0.00017973,2]
[401433199,1768209048899,-503.67264874,0.00017973,2]
[401433200,1768209048908,-500.55153068,0.00017973,2]
[401433201,1768209048919,-500.0,0.00017973,2]
[401433202,1768209048928,-501.38258594,0.00017973,2]
[401433203,1768209048938,-501.10571804,0.00017973,2]
[401433204,1768209048948,-515.69548792,0.00017973,2]
[401433205,1768209048957,-502.86808452,0.00017973,2]
[401433206,1768209048966,-500.0,0.00017973,2]
[401433207,1768209048976,-500.0,0.00017973,2]
[401433208,1768209048986,-500.0,0.00017973,2]
[401433209,1768209048997,-1000.0,0.00017973,2]
[401433210,1768209049007,-152.92662848,0.00017982,2]
[401433211,1768209049017,-500.0,0.00017982,2]
[401433212,1768209049027,-698.02865483,0.0001799,2]
[401433213,1768209049038,-698.02865483,0.0001799,2]
[401433214,1768209049048,-300.0,0.00017999,2]
[401433215,1768209049058,-500.0,0.00017999,2]
[401433216,1768209049067,-500.0,0.00017999,2]
[401433217,1768209049077,-500.0,0.00017999,2]
[401433218,1768209049086,-456.07319796,0.00017999,2]
[401433219,1768209049095,-300.0,0.00017999,2]
[401433220,1768209049105,-673.04563665,0.00017999,2]
[401433221,1768209049114,-300.0,0.00017999,2]
[401433222,1768209049124,-666.0,0.00017999,2]
[401433223,1768209049136,-300.0,0.00017999,2]
[401433224,1768209049146,-300.0,0.00017999,2]
[401433225,1768209049156,-666.0,0.00017999,2]
[401433226,1768209049167,-753.36,0.00017999,2]
[401433227,1768209049176,-753.36,0.00017999,2]
[401433228,1768209049186,-753.36,0.00017999,2]
[401433229,1768209049197,-753.36,0.00017999,2]
[401433230,1768209049207,-753.36,0.00017999,2]
[401433231,1768209049216,-753.36,0.00017999,2]
[401433232,1768209049226,-753.36,0.00017999,2]
[401433233,1768209049235,-753.36,0.00017999,2]
[401433234,1768209049245,-753.36,0.00017999,2]
[401433235,1768209049254,-753.50509882,0.00017999,2]
[401433236,1768209049264,-300.0,0.00017999,2]
[401433237,1768209049273,-263.65847092,0.00018,2]
[401433238,1768209049283,-154.38953807,0.00018,2]
[401433239,1768209049292,-155.07098725,0.00018,2]
[401433240,1768209049302,-151.45444701,0.00018,2]
[401433241,1768209049311,-155.70825827,0.00018,2]
[401433242,1768209049320,-230.19004956,0.00018,2]
[401433243,1768209049329,-152.37123583,0.00018,2]
[401433244,1768209049339,-152.34445976,0.00018,2]
[401433245,1768209049348,-248.59699216,0.00018,2]
[401433246,1768209049358,-154.70586823,0.00018,2]
[401433247,1768209049367,-5626756.50786281,0.00018,2]
[401433248,1768209049529,-566.0,0.0001737,2]
[401433249,1768209049539,-8875.85962042,0.00018,2]
[401433250,1768209049554,-3895.84157124,0.00018,2]
[401433251,1768209049566,-16144.57733684,0.00018,2]
[401433252,1768209049751,-38.16868487,0.00014369,2]
[401433253,1768209245147,1032.97,6.2e-05,2]
[401433254,1768209245192,1032.97,6.513e-05,2]
[401433255,1768209245233,1032.97,6.827e-05,2]
[401433256,1768209245280,1032.97,7.14e-05,2]
[401433257,1768209245426,1032.97,7.454e-05,2]
[401433258,1768209245614,1032.97,7.767e-05,2]
[401433259,1768209245824,178.27799937,8.081e-05,2]
[401433260,1768209245850,854.69200063,8.081e-05,2]
[401433261,1768209246045,1032.97,8.395e-05,2]
[401433262,1768209246261,1032.97,8.708e-05,2]
[401433263,1768209246465,881.55799937,9.022e-05,2]
[401433264,1768209246489,151.41200063,9.022e-05,2]
[401433265,1768209246676,1032.97,9.335e-05,2]
[401433266,1768209246903,1032.97,9.649e-05,2]
[401433267,1768209247100,1032.97,9.962e-05,2]
[401433268,1768209247305,1032.97,0.00010276,2]
[401433269,1768209247508,1032.97,0.00010589,2]
[401433270,1768209247703,1032.97,0.00010903,2]
[401433271,1768209247894,1032.97,0.00011216,2]
[401433272,1768209248090,1032.97,0.0001153,2]
[401433273,1768209248293,1032.97,0.00011843,2]
[401433274,1768209251014,-709.3280002,0.00012157,2]
[401433275,1768209253945,-233.97048591,0.00012157,2]
[401433278,1768209267861,648.34,0.00014247,5]
[401433279,1768209294769,210.0,9.989e-05,2]
[401433280,1768209295089,210.0,9.989e-05,2]
[401433281,1768209295434,131.86799937,9.989e-05,2]
[401433282,1768209295456,78.13200063,9.989e-05,2]
[401433283,1768209295982,210.0,9.989e-05,2]
[401433284,1768209296287,210.0,9.989e-05,2]
[401433285,1768209336312,-89.67151389,0.00012157,2]
[401433286,1768209336338,-173.72034882,0.00012157,2]
[401433287,1768209360188,500.0,0.00011595,2]
[401433288,1768209360254,463.50748496,0.00011595,2]
[401433289,1768209363005,312.85695023,0.00011544,2]
[401433294,1768209680817,-207.50054291,0.00012157,2]
[401433295,1768209682894,-162.0570813,0.00012157,2]
[401433296,1768209685339,-245.30934677,0.00012157,2]
[401433297,1768209686866,-163.21,0.00012157,2]
[401433298,1768209688701,-206.9126802,0.00012157,2]
[401433299,1768209688723,-93.0873198,0.00012157,2]
[401433300,1768209690683,-56.9126802,0.00012157,2]
[401433301,1768209690705,-212.06389952,0.00012157,2]
[401433303,1768209785677,-37.93610048,0.00012157,2]
[401433304,1768209785702,-250.0,0.00012243,2]
[401433305,1768209785727,-45.35317708,0.00012329,2]
[401433306,1768209787621,-121.30682292,0.00012329,2]
[401433307,1768209787646,-79.8938397,0.00012442,2]
[401433308,1768209924846,1026.99761776,0.000108,2]
[401433309,1768209944335,-169.00688446,0.00012442,2]
[401433310,1768209958167,-1.09927584,0.00012442,2]
[401433311,1768209958195,-166.66,0.00012452,2]
[401433312,1768209958223,-73.79468136,0.00012575,2]
[401433313,1768209959912,7052.15974425,8e-05,2]
[401433314,1768209963669,2947.85025575,0.00011,2]
[401433315,1768209963702,6468.59685746,0.00011,2]
[401433322,1768210068115,3531.41314254,0.00012,2]
[401433323,1768210068138,2410.87668426,0.00012,2]
[401433328,1768210150131,-92.86531864,0.00012575,2]
[401433329,1768210150151,-59.27968136,0.00012637,2]
[401433341,1768210231409,-190.72031864,0.00012637,2]
[401433342,1768210231419,-254.0,0.00012637,2]
[401433343,1768210231429,-144.96122875,0.00012699,2]
[401433344,1768210231441,-21.69877125,0.00012699,2]
[401433345,1768210231451,-166.66,0.00012822,2]
[401433346,1768210231460,-166.66,0.00012945,2]
[401433347,1768210231470,-1033.90077817,0.00013,2]
[401433348,1768210231484,-2345.02498503,0.00013,2]
[401433349,1768210231498,-1044.42320086,0.00013,2]
[401433350,1768210231507,-212.74395336,0.000135,2]
[401433351,1768210231517,-971.52413343,0.00013589,2]
[401433352,1768210231530,-228.47586657,0.00013589,2]
[401433353,1768210231540,-770.52413343,0.0001359,2]
[401433355,1768210231582,-574.24112448,0.0001359,2]
[401433357,1768210231594,-7540.94755102,0.0001359,2]
[401433359,1768210231604,-183.99062804,0.00013597,2]
[401433361,1768210231614,-150.0,0.00013597,2]
[401433362,1768210231624,-502967.94836374,0.00013598,2]
[401433364,1768210231635,-100728.36070186,0.00013598,2]
[401433366,1768210231647,-54202.5878624,0.00013598,2]
[401433367,1768210231658,-76522.78344687,0.00013598,2]
[401433368,1768210231673,-27585.30319878,0.00013598,2]
[401433369,1768210231683,-395.00000005,0.00013598,2]
[401433379,1768210237450,-500.0,0.00013597,2]
[401433380,1768210237460,-174.45523947,0.00013597,2]
[401433381,1768210237470,-198.64753651,0.00013598,2]
[401433382,1768210237505,-2506.04343299,0.00013598,2]
[401433383,1768210237602,-825.89185212,0.00013598,2]
[401433385,1768210237724,-588.0,0.00013598,2]
[401433386,1768210237757,-346.73166929,0.00013598,2]
[401433387,1768210237799,-443.14439327,0.00013598,2]
[401433414,1768210239793,-1.7e-07,0.00013598,2]
[401433415,1768210239805,-232689.55754195,0.00013598,2]
[401433416,1768210239819,-998.0,0.0001369,2]
[401433417,1768210239830,-299.99,0.00013697,2]
[401433418,1768210239839,-500.0,0.00013698,2]
[401433419,1768210239849,-500.0,0.00013698,2]
[401433420,1768210239858,-500.0,0.00013698,2]
[401433421,1768210239868,-500.0,0.00013698,2]
[401433422,1768210239878,-500.0,0.00013698,2]
[401433423,1768210239888,-500.0,0.00013698,2]
[401433424,1768210239898,-150.99,0.00013698,2]
[401433425,1768210239907,-2841.9,0.00013698,2]
[401433426,1768210239917,-3689.33,0.00013698,2]
[401433427,1768210239927,-9999.99,0.00013698,2]
[401433428,1768210239936,-150.99,0.00013698,2]
[401433429,1768210239946,-13971.08,0.00013698,2]
[401433430,1768210239956,-999.99,0.00013698,2]
[401433431,1768210239966,-2649.93,0.00013698,2]
[401433432,1768210239975,-189.76,0.00013699,2]
[401433433,1768210239985,-7736.08,0.00013699,2]
[401433434,1768210239996,-2500.0,0.00013833,2]
[401433435,1768210240007,-2500.0,0.00013833,2]
[401433436,1768210240016,-2500.0,0.00013833,2]
[401433437,1768210240026,-2500.0,0.00013833,2]
[401433438,1768210240035,-2500.0,0.00013833,2]
[401433439,1768210240046,-250.0,0.00013833,2]
[401433440,1768210240056,-600.0,0.00013833,2]
[401433441,1768210240066,-600.0,0.00013833,2]
[401433442,1768210240078,-600.0,0.00013833,2]
[401433443,1768210240088,-600.0,0.00013833,2]
[401433444,1768210240098,-621.03678771,0.00013833,2]
[401433445,1768210240108,-1936.99946493,0.00013833,2]
[401433446,1768210240118,-250.0,0.00013833,2]
[401433447,1768210240127,-1870.41,0.00013843,2]
[401433448,1768210240138,-224.95,0.0001386,2]
[401433449,1768210240147,-5041.92423814,0.00014,2]
[401433450,1768210240156,-998.13686081,0.00014,2]
[401433451,1768210240166,-8885.71280892,0.00014069,2]